[Event "Late-Titled-Tuesday-Blitz-April-02-2024"]
[Site "Chess.com"]
[Date "2024.04.02"]
[Round "5"]
[White "BillCoe"]
[Black "Kostukov_Alex"]
[Result "0-1"]
[WhiteElo "2113"]
[BlackElo "2293"]
[TimeControl "180+1"]
[EndTime "14:53:52 PDT"]
[Termination "Kostukov_Alex won on time"]

1. e4 {[%clk 0:03:00.9]} 1... c5 {[%clk 0:02:59.9]} 2. Nf3 {[%clk 0:03:01.1]}
2... g6 {[%clk 0:03:00.1]} 3. d4 {[%clk 0:03:01.1]} 3... cxd4 {[%clk 0:03:01]}
4. Nxd4 {[%clk 0:03:01.3]} 4... Bg7 {[%clk 0:03:01.5]} 5. c4 {[%clk 0:03:01.7]}
5... Nc6 {[%clk 0:03:02.2]} 6. Be3 {[%clk 0:03:01.6]} 6... Nf6 {[%clk
0:03:02.4]} 7. Nc3 {[%clk 0:03:01.4]} 7... O-O {[%clk 0:03:02.9]} 8. Be2 {[%clk
0:03:01.3]} 8... Nxd4 {[%clk 0:03:03]} 9. Bxd4 {[%clk 0:03:01.1]} 9... Qa5
{[%clk 0:03:03.9]} 10. O-O {[%clk 0:02:58.6]} 10... d6 {[%clk 0:03:04]} 11. f4
{[%clk 0:02:57.7]} 11... e5 {[%clk 0:02:42.2]} 12. Be3 {[%clk 0:02:51.2]} 12...
Qb4 {[%clk 0:02:03.1]} 13. Qd2 {[%clk 0:02:19.4]} 13... Ng4 {[%clk 0:01:43.5]}
14. Bxg4 {[%clk 0:02:11.9]} 14... Bxg4 {[%clk 0:01:44.4]} 15. Rac1 {[%clk
0:01:14.7]} 15... Qxc4 {[%clk 0:01:21]} 16. Qxd6 {[%clk 0:01:12.4]} 16... Rad8
{[%clk 0:01:10.9]} 17. Qa3 {[%clk 0:01:06.9]} 17... exf4 {[%clk 0:00:59.7]} 18.
Rxf4 {[%clk 0:01:02.5]} 18... Be6 {[%clk 0:00:57.4]} 19. Qxa7 {[%clk 0:00:54.5]}
19... Qd3 {[%clk 0:00:40.4]} 20. Rcf1 {[%clk 0:00:44.9]} 20... Ra8 {[%clk
0:00:19.9]} 21. Qb6 {[%clk 0:00:35.6]} 21... Ra6 {[%clk 0:00:15.7]} 22. Qc5
{[%clk 0:00:33.9]} 22... Rc8 {[%clk 0:00:12.5]} 23. Rd1 {[%clk 0:00:27.9]} 23...
Qc2 {[%clk 0:00:03.1]} 24. Qxc8+ {[%clk 0:00:15]} 24... Bxc8 {[%clk 0:00:02.8]}
25. Rd8+ {[%clk 0:00:15.9]} 25... Bf8 {[%clk 0:00:03.1]} 26. Rxc8 {[%clk
0:00:16.8]} 26... Qxb2 {[%clk 0:00:01.9]} 27. Bc5 {[%clk 0:00:16.1]} 27... Qc1+
{[%clk 0:00:01.9]} 28. Rf1 {[%clk 0:00:15.3]} 28... Qxc3 {[%clk 0:00:01.6]} 29.
Rxf8+ {[%clk 0:00:15.1]} 29... Kg7 {[%clk 0:00:01.4]} 30. Rc8 {[%clk 0:00:14.5]}
30... Rc6 {[%clk 0:00:02]} 31. Rxc6 {[%clk 0:00:12.4]} 31... bxc6 {[%clk
0:00:02.9]} 32. Bd6 {[%clk 0:00:12.5]} 32... Qc4 {[%clk 0:00:03.1]} 33. e5
{[%clk 0:00:12.6]} 33... Qd4+ {[%clk 0:00:02.9]} 34. Kh1 {[%clk 0:00:13]} 34...
h5 {[%clk 0:00:02.5]} 35. h3 {[%clk 0:00:12.8]} 35... h4 {[%clk 0:00:02.8]} 36.
Kh2 {[%clk 0:00:11.8]} 36... g5 {[%clk 0:00:03.3]} 37. Kh1 {[%clk 0:00:10.9]}
37... Qd5 {[%clk 0:00:03.1]} 38. Re1 {[%clk 0:00:05.9]} 38... c5 {[%clk
0:00:03.2]} 39. Be7 {[%clk 0:00:06.2]} 39... c4 {[%clk 0:00:02.9]} 40. Bf6+
{[%clk 0:00:06.4]} 40... Kg6 {[%clk 0:00:03.6]} 41. Rf1 {[%clk 0:00:04.4]} 41...
c3 {[%clk 0:00:03.9]} 42. Bh8 {[%clk 0:00:04.5]} 42... c2 {[%clk 0:00:04.2]} 43.
Rf6+ {[%clk 0:00:03.8]} 43... Kh7 {[%clk 0:00:03.2]} 44. Rf1 {[%clk 0:00:02.7]}
44... Qd1 {[%clk 0:00:02.8]} 0-1

[Event "Late-Titled-Tuesday-Blitz-April-02-2024"]
[Site "Chess.com"]
[Date "2024.04.02"]
[Round "5"]
[White "FredddieCroderg"]
[Black "ozates"]
[Result "0-1"]
[WhiteElo "2390"]
[BlackElo "2562"]
[TimeControl "180+1"]
[EndTime "14:53:53 PDT"]
[Termination "ozates won on time"]

1. d4 {[%clk 0:02:52.7]} 1... Nf6 {[%clk 0:02:58.3]} 2. c4 {[%clk 0:02:52]} 2...
e6 {[%clk 0:02:57.5]} 3. Nf3 {[%clk 0:02:49.9]} 3... d5 {[%clk 0:02:56.6]} 4.
Nc3 {[%clk 0:02:47.5]} 4... Be7 {[%clk 0:02:55.9]} 5. cxd5 {[%clk 0:02:46.3]}
5... exd5 {[%clk 0:02:51.1]} 6. Bg5 {[%clk 0:02:45.7]} 6... c6 {[%clk
0:02:49.7]} 7. e3 {[%clk 0:02:45.7]} 7... Ne4 {[%clk 0:02:48.7]} 8. Bxe7 {[%clk
0:02:44]} 8... Qxe7 {[%clk 0:02:48.5]} 9. Qc2 {[%clk 0:02:41.9]} 9... O-O {[%clk
0:02:48.1]} 10. Bd3 {[%clk 0:02:38.5]} 10... f5 {[%clk 0:02:46.8]} 11. Ne5
{[%clk 0:02:36.6]} 11... Nd7 {[%clk 0:02:45.9]} 12. f4 {[%clk 0:02:23.4]} 12...
Ndf6 {[%clk 0:02:39.8]} 13. Nxe4 {[%clk 0:02:20.4]} 13... fxe4 {[%clk
0:02:38.1]} 14. Be2 {[%clk 0:02:16.6]} 14... Bf5 {[%clk 0:02:35.4]} 15. g4
{[%clk 0:02:12.2]} 15... Be6 {[%clk 0:02:15.3]} 16. g5 {[%clk 0:02:11]} 16...
Nd7 {[%clk 0:02:15.3]} 17. h4 {[%clk 0:02:06.3]} 17... Nxe5 {[%clk 0:02:15.2]}
18. dxe5 {[%clk 0:02:02.5]} 18... c5 {[%clk 0:02:14.6]} 19. h5 {[%clk
0:01:56.2]} 19... Rad8 {[%clk 0:02:08.8]} 20. O-O {[%clk 0:01:49.9]} 20... b6
{[%clk 0:02:02.2]} 21. Kg2 {[%clk 0:01:45.6]} 21... d4 {[%clk 0:02:01]} 22. Bc4
{[%clk 0:01:43.5]} 22... d3 {[%clk 0:01:57]} 23. Qb3 {[%clk 0:01:42.9]} 23...
Bxc4 {[%clk 0:01:51.3]} 24. Qxc4+ {[%clk 0:01:41.4]} 24... Kh8 {[%clk
0:01:51.7]} 25. Qxe4 {[%clk 0:01:39.3]} 25... b5 {[%clk 0:01:51.5]} 26. a4
{[%clk 0:01:31.1]} 26... a6 {[%clk 0:01:51]} 27. axb5 {[%clk 0:01:30.6]} 27...
axb5 {[%clk 0:01:51.9]} 28. Ra6 {[%clk 0:01:27]} 28... c4 {[%clk 0:01:50.6]} 29.
h6 {[%clk 0:01:25.3]} 29... g6 {[%clk 0:01:42.9]} 30. Rf6 {[%clk 0:01:22.4]}
30... Qb4 {[%clk 0:01:41.2]} 31. e6 {[%clk 0:01:15]} 31... Qxb2+ {[%clk
0:00:37.1]} 32. Rf2 {[%clk 0:01:12.4]} 32... d2 {[%clk 0:00:37.7]} 33. e7 {[%clk
0:01:08.4]} 33... Qxf6 {[%clk 0:00:31.7]} 34. gxf6 {[%clk 0:00:23.8]} 34... d1=Q
{[%clk 0:00:29]} 35. exf8=Q+ {[%clk 0:00:20.1]} 35... Rxf8 {[%clk 0:00:29.9]}
36. Qe6 {[%clk 0:00:16.8]} 36... Qh5 {[%clk 0:00:18.8]} 37. Kg3 {[%clk
0:00:06.4]} 37... g5 {[%clk 0:00:16.7]} 38. f5 {[%clk 0:00:04.2]} 38... Qh4+
{[%clk 0:00:15.5]} 39. Kg2 {[%clk 0:00:03.6]} 39... Qxh6 {[%clk 0:00:14.3]} 40.
f7 {[%clk 0:00:02.6]} 40... Qg7 {[%clk 0:00:12.6]} 41. f6 {[%clk 0:00:02]} 41...
Qxf7 {[%clk 0:00:13]} 42. Qxf7 {[%clk 0:00:02.5]} 42... Rxf7 {[%clk 0:00:13.9]}
43. e4 {[%clk 0:00:02.2]} 43... Kg8 {[%clk 0:00:12.5]} 44. e5 {[%clk 0:00:02.6]}
44... Rb7 {[%clk 0:00:10.9]} 45. e6 {[%clk 0:00:02.4]} 45... Kf8 {[%clk
0:00:10.7]} 46. Rd2 {[%clk 0:00:02.3]} 46... Rb8 {[%clk 0:00:10.2]} 0-1

[Event "Late-Titled-Tuesday-Blitz-April-02-2024"]
[Site "Chess.com"]
[Date "2024.04.02"]
[Round "5"]
[White "Zhigalko_Sergei"]
[Black "manitodeplomo"]
[Result "1-0"]
[WhiteElo "2880"]
[BlackElo "2633"]
[TimeControl "180+1"]
[EndTime "14:53:58 PDT"]
[Termination "Zhigalko_Sergei won on time"]

1. e4 {[%clk 0:03:00.9]} 1... e5 {[%clk 0:02:54.7]} 2. Nf3 {[%clk 0:03:00.3]}
2... Nf6 {[%clk 0:02:55.3]} 3. d4 {[%clk 0:02:58.8]} 3... Nxe4 {[%clk
0:02:55.3]} 4. Bd3 {[%clk 0:02:58.9]} 4... Nc6 {[%clk 0:02:54.7]} 5. d5 {[%clk
0:02:59.2]} 5... Nc5 {[%clk 0:02:53.6]} 6. dxc6 {[%clk 0:02:59.7]} 6... e4
{[%clk 0:02:54]} 7. cxb7 {[%clk 0:03:00.1]} 7... Bxb7 {[%clk 0:02:52.3]} 8. Be2
{[%clk 0:03:01]} 8... exf3 {[%clk 0:02:52.5]} 9. Bxf3 {[%clk 0:03:01.9]} 9...
Bxf3 {[%clk 0:02:52.4]} 10. Qxf3 {[%clk 0:03:02.8]} 10... Bd6 {[%clk 0:02:49.4]}
11. O-O {[%clk 0:02:47.3]} 11... O-O {[%clk 0:02:49]} 12. Nc3 {[%clk 0:02:21.8]}
12... Re8 {[%clk 0:02:41.2]} 13. Be3 {[%clk 0:02:13.7]} 13... Ne6 {[%clk
0:02:25.8]} 14. Rad1 {[%clk 0:02:10]} 14... Be5 {[%clk 0:02:21]} 15. Rd3 {[%clk
0:01:45.2]} 15... c6 {[%clk 0:02:15.4]} 16. Qf5 {[%clk 0:01:21.6]} 16... Qc7
{[%clk 0:02:02.2]} 17. g3 {[%clk 0:01:04]} 17... g6 {[%clk 0:01:56.2]} 18. Qf3
{[%clk 0:01:00.3]} 18... d5 {[%clk 0:01:55.8]} 19. Na4 {[%clk 0:00:58.6]} 19...
d4 {[%clk 0:01:43]} 20. Bd2 {[%clk 0:00:55.5]} 20... c5 {[%clk 0:01:42.2]} 21.
Bc1 {[%clk 0:00:38.6]} 21... c4 {[%clk 0:01:41.1]} 22. Rdd1 {[%clk 0:00:38.6]}
22... Rad8 {[%clk 0:01:22.3]} 23. Rfe1 {[%clk 0:00:35.7]} 23... Bg7 {[%clk
0:01:13.6]} 24. b3 {[%clk 0:00:25.5]} 24... d3 {[%clk 0:01:07.7]} 25. c3 {[%clk
0:00:22.4]} 25... Nc5 {[%clk 0:00:51.4]} 26. Rxe8+ {[%clk 0:00:14]} 26... Rxe8
{[%clk 0:00:50.4]} 27. Bf4 {[%clk 0:00:14.4]} 27... Qc8 {[%clk 0:00:47.9]} 28.
Nxc5 {[%clk 0:00:13.7]} 28... Qxc5 {[%clk 0:00:47.8]} 29. bxc4 {[%clk
0:00:14.1]} 29... Qxc4 {[%clk 0:00:43.1]} 30. Qxd3 {[%clk 0:00:11.7]} 30... Qxa2
{[%clk 0:00:33]} 31. Qd7 {[%clk 0:00:07.5]} 31... Qe6 {[%clk 0:00:23.4]} 32.
Qxe6 {[%clk 0:00:07.1]} 32... fxe6 {[%clk 0:00:22.4]} 33. Ra1 {[%clk 0:00:05.8]}
33... Ra8 {[%clk 0:00:18.7]} 34. Ra6 {[%clk 0:00:04.9]} 34... Bxc3 {[%clk
0:00:17.1]} 35. Be3 {[%clk 0:00:05.1]} 35... Kf7 {[%clk 0:00:11.1]} 36. Kg2
{[%clk 0:00:05.5]} 36... Ke7 {[%clk 0:00:09]} 37. Kf3 {[%clk 0:00:05]} 37... Kd7
{[%clk 0:00:08.5]} 38. Ke4 {[%clk 0:00:05.1]} 38... Bf6 {[%clk 0:00:08.3]} 39.
h4 {[%clk 0:00:04.6]} 39... h5 {[%clk 0:00:07.8]} 40. Bc5 {[%clk 0:00:04]} 40...
Kc7 {[%clk 0:00:07.1]} 41. Rxe6 {[%clk 0:00:03.3]} 41... Bd8 {[%clk 0:00:03.2]}
42. Rxg6 {[%clk 0:00:03]} 42... a5 {[%clk 0:00:02.7]} 43. Rh6 {[%clk 0:00:03]}
43... a4 {[%clk 0:00:02.4]} 44. Ba3 {[%clk 0:00:03.3]} 1-0

[Event "Late-Titled-Tuesday-Blitz-April-02-2024"]
[Site "Chess.com"]
[Date "2024.04.02"]
[Round "5"]
[White "Kirill_Klukin"]
[Black "AmanteDeMoi"]
[Result "0-1"]
[WhiteElo "2785"]
[BlackElo "2611"]
[TimeControl "180+1"]
[EndTime "14:53:58 PDT"]
[Termination "AmanteDeMoi won by resignation"]

1. f4 {[%clk 0:02:58.4]} 1... g6 {[%clk 0:02:54.2]} 2. Nf3 {[%clk 0:02:58.7]}
2... Bg7 {[%clk 0:02:54.1]} 3. g3 {[%clk 0:02:59.3]} 3... d6 {[%clk 0:02:45.2]}
4. Bg2 {[%clk 0:02:59.4]} 4... e5 {[%clk 0:02:45.6]} 5. d3 {[%clk 0:02:56.1]}
5... Nc6 {[%clk 0:02:44.5]} 6. Nc3 {[%clk 0:02:55.6]} 6... exf4 {[%clk 0:02:39]}
7. Bxf4 {[%clk 0:02:54.1]} 7... Nge7 {[%clk 0:02:39]} 8. O-O {[%clk 0:02:51.3]}
8... O-O {[%clk 0:02:37.9]} 9. e4 {[%clk 0:02:49.8]} 9... h6 {[%clk 0:02:36.5]}
10. h4 {[%clk 0:02:23.9]} 10... Bg4 {[%clk 0:02:36.1]} 11. Qd2 {[%clk
0:02:23.6]} 11... Kh7 {[%clk 0:02:30.4]} 12. Rae1 {[%clk 0:02:23.1]} 12... Nd4
{[%clk 0:02:04.6]} 13. Nxd4 {[%clk 0:02:13.7]} 13... Bxd4+ {[%clk 0:02:05.5]}
14. Kh2 {[%clk 0:02:13.7]} 14... Bg7 {[%clk 0:02:04.6]} 15. e5 {[%clk
0:02:11.8]} 15... d5 {[%clk 0:01:58.9]} 16. Nd1 {[%clk 0:01:58.3]} 16... Be6
{[%clk 0:01:40.5]} 17. d4 {[%clk 0:01:57.4]} 17... Nf5 {[%clk 0:01:33.8]} 18.
Ne3 {[%clk 0:01:56.5]} 18... Nxe3 {[%clk 0:01:25.4]} 19. Qxe3 {[%clk 0:01:45.8]}
19... c6 {[%clk 0:01:16.7]} 20. Rf2 {[%clk 0:01:46]} 20... Qd7 {[%clk
0:01:13.5]} 21. Bf1 {[%clk 0:01:45.3]} 21... Rae8 {[%clk 0:01:10.7]} 22. Bd3
{[%clk 0:01:45.6]} 22... Bf5 {[%clk 0:00:59.1]} 23. h5 {[%clk 0:01:34.4]} 23...
Bxd3 {[%clk 0:00:44]} 24. Qxd3 {[%clk 0:01:32.9]} 24... Qg4 {[%clk 0:00:43.8]}
25. hxg6+ {[%clk 0:01:30.3]} 25... fxg6 {[%clk 0:00:44.6]} 26. Ref1 {[%clk
0:01:29.3]} 26... Rf5 {[%clk 0:00:41.7]} 27. Qf3 {[%clk 0:01:19.1]} 27... Qxf3
{[%clk 0:00:27.9]} 28. Rxf3 {[%clk 0:01:19.3]} 28... Ref8 {[%clk 0:00:17.8]} 29.
g4 {[%clk 0:01:14.3]} 29... R5f7 {[%clk 0:00:17.3]} 30. Kg2 {[%clk 0:01:14.1]}
30... g5 {[%clk 0:00:11.3]} 31. Bd2 {[%clk 0:01:12.7]} 31... Rxf3 {[%clk
0:00:12.2]} 32. Rxf3 {[%clk 0:01:13.3]} 32... Rxf3 {[%clk 0:00:13]} 33. Kxf3
{[%clk 0:01:14.2]} 33... Kg6 {[%clk 0:00:12.9]} 34. Bb4 {[%clk 0:01:09.2]} 34...
Kf7 {[%clk 0:00:07.3]} 35. b3 {[%clk 0:01:04.6]} 35... Ke6 {[%clk 0:00:07.3]}
36. Ke3 {[%clk 0:01:04.4]} 36... b6 {[%clk 0:00:07]} 37. Bd6 {[%clk 0:01:02]}
37... a6 {[%clk 0:00:05.5]} 38. c4 {[%clk 0:01:02.1]} 38... c5 {[%clk
0:00:03.8]} 39. Bc7 {[%clk 0:00:48.6]} 39... cxd4+ {[%clk 0:00:03.5]} 40. Kxd4
{[%clk 0:00:49.5]} 40... dxc4 {[%clk 0:00:03.9]} 41. bxc4 {[%clk 0:00:50.4]}
41... b5 {[%clk 0:00:04.2]} 42. c5 {[%clk 0:00:51]} 42... Kd7 {[%clk 0:00:04]}
43. Kd5 {[%clk 0:00:51]} 43... Kxc7 {[%clk 0:00:04]} 44. a3 {[%clk 0:00:19.8]}
44... a5 {[%clk 0:00:03.8]} 45. e6 {[%clk 0:00:15.6]} 45... Bf8 {[%clk
0:00:03.8]} 46. c6 {[%clk 0:00:16.2]} 46... b4 {[%clk 0:00:03.6]} 47. axb4
{[%clk 0:00:17.1]} 47... axb4 {[%clk 0:00:04.5]} 48. e7 {[%clk 0:00:18]} 48...
Bxe7 {[%clk 0:00:04.5]} 49. Kc4 {[%clk 0:00:18.9]} 0-1

[Event "Late-Titled-Tuesday-Blitz-April-02-2024"]
[Site "Chess.com"]
[Date "2024.04.02"]
[Round "5"]
[White "Zkid"]
[Black "GlavkonVVS"]
[Result "1-0"]
[WhiteElo "2841"]
[BlackElo "2611"]
[TimeControl "180+1"]
[EndTime "14:54:03 PDT"]
[Termination "Zkid won by resignation"]

1. e4 {[%clk 0:03:00.9]} 1... Nf6 {[%clk 0:02:59.3]} 2. e5 {[%clk 0:03:00.9]}
2... Nd5 {[%clk 0:02:59.3]} 3. d4 {[%clk 0:03:01.4]} 3... d6 {[%clk 0:02:59.7]}
4. c4 {[%clk 0:03:02]} 4... Nb6 {[%clk 0:03:00]} 5. exd6 {[%clk 0:03:02.6]} 5...
cxd6 {[%clk 0:03:00.4]} 6. Nf3 {[%clk 0:03:00.9]} 6... Bg4 {[%clk 0:02:59.3]} 7.
h3 {[%clk 0:03:00.3]} 7... Bxf3 {[%clk 0:02:58.8]} 8. Qxf3 {[%clk 0:03:01.2]}
8... Nc6 {[%clk 0:02:58.7]} 9. d5 {[%clk 0:02:45.4]} 9... Ne5 {[%clk 0:02:57.6]}
10. Qd1 {[%clk 0:02:34.1]} 10... g6 {[%clk 0:02:54.1]} 11. Be2 {[%clk
0:02:25.1]} 11... Rc8 {[%clk 0:02:52.2]} 12. Nd2 {[%clk 0:02:12.3]} 12... Bg7
{[%clk 0:02:50.8]} 13. O-O {[%clk 0:02:05.9]} 13... O-O {[%clk 0:02:50.3]} 14.
b3 {[%clk 0:01:48.1]} 14... Nexc4 {[%clk 0:02:47.2]} 15. Rb1 {[%clk 0:01:27.4]}
15... Nxd2 {[%clk 0:02:37.2]} 16. Qxd2 {[%clk 0:01:28.3]} 16... Rc5 {[%clk
0:02:34.1]} 17. Bf3 {[%clk 0:01:27.6]} 17... Qc7 {[%clk 0:02:33.9]} 18. Qd3
{[%clk 0:01:20.1]} 18... Rc3 {[%clk 0:02:30]} 19. Qe4 {[%clk 0:01:20.2]} 19...
Rc2 {[%clk 0:02:26.8]} 20. a4 {[%clk 0:01:17.9]} 20... Bf6 {[%clk 0:02:18]} 21.
Be2 {[%clk 0:00:59.6]} 21... Nd7 {[%clk 0:02:04.8]} 22. Bc4 {[%clk 0:00:57.6]}
22... Ra2 {[%clk 0:01:58.2]} 23. Be3 {[%clk 0:00:52.2]} 23... Ne5 {[%clk
0:01:48.8]} 24. Bb5 {[%clk 0:00:45.2]} 24... a6 {[%clk 0:01:47]} 25. Rfc1 {[%clk
0:00:44.7]} 25... Qa5 {[%clk 0:01:36.6]} 26. Bf1 {[%clk 0:00:39.5]} 26... b5
{[%clk 0:01:25.2]} 27. axb5 {[%clk 0:00:34.8]} 27... axb5 {[%clk 0:01:25.2]} 28.
f4 {[%clk 0:00:32.5]} 28... Nd7 {[%clk 0:01:23.3]} 29. Qd3 {[%clk 0:00:28.4]}
29... Rb8 {[%clk 0:01:10.7]} 30. b4 {[%clk 0:00:26.1]} 30... Qd8 {[%clk
0:01:02.1]} 31. Qb3 {[%clk 0:00:23.1]} 31... Raa8 {[%clk 0:00:59.1]} 32. Rc6
{[%clk 0:00:22.6]} 32... Nb6 {[%clk 0:00:54.2]} 33. Bxb5 {[%clk 0:00:20.6]}
33... Nc8 {[%clk 0:00:44]} 34. Be2 {[%clk 0:00:15.8]} 34... Na7 {[%clk
0:00:41.3]} 35. Ra6 {[%clk 0:00:15.8]} 35... Nc8 {[%clk 0:00:39.1]} 36. Qa4
{[%clk 0:00:11.5]} 36... Rxa6 {[%clk 0:00:37.5]} 37. Qxa6 {[%clk 0:00:12.4]}
37... Nb6 {[%clk 0:00:36.5]} 38. Bf3 {[%clk 0:00:12.7]} 38... Nd7 {[%clk
0:00:27.1]} 39. Rc1 {[%clk 0:00:09.9]} 39... Kg7 {[%clk 0:00:24.3]} 40. Ba7
{[%clk 0:00:10]} 40... Ra8 {[%clk 0:00:16.5]} 41. Qb7 {[%clk 0:00:10.2]} 41...
Nf8 {[%clk 0:00:14]} 42. b5 {[%clk 0:00:09]} 42... Nd7 {[%clk 0:00:11.1]} 43.
Kh2 {[%clk 0:00:06.9]} 43... h5 {[%clk 0:00:10.5]} 44. Rc7 {[%clk 0:00:05.5]}
44... Nc5 {[%clk 0:00:10]} 45. Bxc5 {[%clk 0:00:04.9]} 45... dxc5 {[%clk
0:00:10.3]} 46. Rd7 {[%clk 0:00:04]} 46... Qa5 {[%clk 0:00:09.7]} 47. d6 {[%clk
0:00:03.9]} 47... Re8 {[%clk 0:00:07.9]} 48. dxe7 {[%clk 0:00:03.9]} 48... Qd2
{[%clk 0:00:06.8]} 49. Rxd2 {[%clk 0:00:02.9]} 1-0

[Event "Late-Titled-Tuesday-Blitz-April-02-2024"]
[Site "Chess.com"]
[Date "2024.04.02"]
[Round "5"]
[White "wild3000"]
[Black "Tugrik1969"]
[Result "1-0"]
[WhiteElo "2404"]
[BlackElo "2544"]
[TimeControl "180+1"]
[EndTime "14:54:05 PDT"]
[Termination "wild3000 won on time"]

1. d4 {[%clk 0:03:00.3]} 1... d5 {[%clk 0:02:57]} 2. Nf3 {[%clk 0:02:55.6]} 2...
Nf6 {[%clk 0:02:56.1]} 3. e3 {[%clk 0:02:49.4]} 3... c5 {[%clk 0:02:52.5]} 4.
Be2 {[%clk 0:02:45]} 4... g6 {[%clk 0:02:44.7]} 5. O-O {[%clk 0:02:43.7]} 5...
Bg7 {[%clk 0:02:44.8]} 6. dxc5 {[%clk 0:02:43.5]} 6... O-O {[%clk 0:02:39.3]} 7.
a3 {[%clk 0:02:41.2]} 7... Ne4 {[%clk 0:02:37.3]} 8. Nc3 {[%clk 0:02:16.4]} 8...
Nxc3 {[%clk 0:02:36.1]} 9. bxc3 {[%clk 0:02:17.3]} 9... Na6 {[%clk 0:02:36.7]}
10. Rb1 {[%clk 0:02:09.7]} 10... Nxc5 {[%clk 0:02:35.7]} 11. c4 {[%clk
0:02:06.5]} 11... Na4 {[%clk 0:02:22.5]} 12. Bd2 {[%clk 0:01:54.3]} 12... Nb2
{[%clk 0:02:19.1]} 13. Qc1 {[%clk 0:01:43.5]} 13... Nxc4 {[%clk 0:02:18.3]} 14.
Bb4 {[%clk 0:01:25.3]} 14... Qc7 {[%clk 0:02:09]} 15. Rd1 {[%clk 0:01:18.4]}
15... Rd8 {[%clk 0:02:06]} 16. h3 {[%clk 0:01:10.3]} 16... a5 {[%clk 0:01:52.1]}
17. Be1 {[%clk 0:01:08.4]} 17... Qc5 {[%clk 0:01:32.7]} 18. a4 {[%clk
0:01:05.2]} 18... Bd7 {[%clk 0:01:26.8]} 19. Rxb7 {[%clk 0:00:45.9]} 19... Bxa4
{[%clk 0:01:26.5]} 20. Nd4 {[%clk 0:00:39.4]} 20... e5 {[%clk 0:01:18.9]} 21.
Nb3 {[%clk 0:00:36.3]} 21... Qc6 {[%clk 0:01:10.4]} 22. Bxc4 {[%clk 0:00:16]}
22... Qxb7 {[%clk 0:00:54.2]} 23. Nxa5 {[%clk 0:00:16.1]} 23... Qc7 {[%clk
0:00:54.4]} 24. Bxd5 {[%clk 0:00:11.7]} 24... Rxa5 {[%clk 0:00:52.6]} 25. Bxa5
{[%clk 0:00:12.6]} 25... Qxa5 {[%clk 0:00:52.7]} 26. e4 {[%clk 0:00:11.5]} 26...
Be8 {[%clk 0:00:49.9]} 27. c4 {[%clk 0:00:10.7]} 27... Rc8 {[%clk 0:00:42.1]}
28. Qe3 {[%clk 0:00:08.1]} 28... Qc5 {[%clk 0:00:41.4]} 29. Qf3 {[%clk
0:00:07.7]} 29... Qe7 {[%clk 0:00:36.3]} 30. g3 {[%clk 0:00:07.3]} 30... Bh6
{[%clk 0:00:32.4]} 31. Kg2 {[%clk 0:00:06.1]} 31... Kg7 {[%clk 0:00:30.9]} 32.
Rd3 {[%clk 0:00:05.7]} 32... Bc6 {[%clk 0:00:29.2]} 33. Rb3 {[%clk 0:00:05.6]}
33... Bxd5 {[%clk 0:00:28.9]} 34. cxd5 {[%clk 0:00:06.5]} 34... Bg5 {[%clk
0:00:26.3]} 35. h4 {[%clk 0:00:05.9]} 35... Bf6 {[%clk 0:00:25.8]} 36. h5 {[%clk
0:00:05.9]} 36... Bg5 {[%clk 0:00:24]} 37. Rb6 {[%clk 0:00:05.3]} 37... Rd8
{[%clk 0:00:23.1]} 38. Rc6 {[%clk 0:00:05.2]} 38... Rd6 {[%clk 0:00:20.8]} 39.
Rc8 {[%clk 0:00:05.2]} 39... Rf6 {[%clk 0:00:15.5]} 40. Qg4 {[%clk 0:00:04.4]}
40... Bd2 {[%clk 0:00:12.6]} 41. f3 {[%clk 0:00:04.2]} 41... Qb7 {[%clk
0:00:04.1]} 42. Re8 {[%clk 0:00:01.8]} 42... Bc3 {[%clk 0:00:01.9]} 43. Qh4
{[%clk 0:00:01.9]} 1-0